{"text_format":"3","workbook":"xlsx","n_sheets":5,"sheets":["Январь","Февраль","Март","Апрель","Май"],"read":"whole","date_system":"1900"}

{"sheet":"Январь","index":0,"n_rows":21,"n_cols":19,"rows_kept":21}
[{"$nulls":6},"Единый график проведения оценочных процедур на 2 полугодие 2025-2026 уч.года"]
["Классы",12,13,14,15,16,17,19,20,21,22,23,24,26,27,28,29,30,31]
[{"$f":"Апрель!A3","v":2}]
[{"$f":"Апрель!A4","v":3}]
[{"$f":"Апрель!A5","v":4},null,"ТКР М",{"$nulls":11},"ТКР О"]
[{"$f":"Апрель!A6","v":5},{"$nulls":3},"ТКР Л",{"$nulls":3},"ТКР Р"]
[{"$f":"Апрель!A7","v":"6а"},{"$nulls":16},"ТКР Л","ТКР И"]
[{"$f":"Апрель!A8","v":"6б"},{"$nulls":15},"ТКР И"]
[{"$f":"Апрель!A9","v":7},{"$nulls":6},"ТКР Ал"]
[{"$f":"Апрель!A10","v":8},{"$nulls":3},"ТКР Ал",{"$nulls":6},"ТКР И",{"$nulls":3},"ТКР Р"]
[{"$f":"Апрель!A11","v":9},{"$nulls":8},"ТКР Гм","ТКР Ал",{"$nulls":4},"ТКР Ф"]
[]
[]
["Сокращение названий форм оценочных процедур"]
[{"$nulls":7},"Р","русский язык",null,"Ф","физика",null,"Англ 1, 2","английский язык (1,2 подгруппы)"]
["Всероссийские проверочные работы","ВПР",{"$nulls":5},"Л","литература",null,"Х","химия",null,"ОБЗР","ОБЗР"]
["Основной государственный экзамен","ОГЭ",{"$nulls":5},"М","математика",null,"Инф","информатика",null,"ВиС"," вероятность и статистика"]
["Стартовая административная контрольная работа","САКР",{"$nulls":5},"Ал","алгебра",null,"ИЗО","изо",null,"О","окружающий мир"]
["Текущая контрольная работа","ТКР",{"$nulls":5},"Гм","геометрия",null,"РТ","родной (татарский) язык",null,"Общ","обществознание"]
["Административная контрольная работа","АКР",{"$nulls":5},"Г","география",null,"И","история",null,"ГЯ","Гос (тат) яз"]
["Промежуточная аттестация","ПА"]

{"sheet":"Февраль","index":1,"n_rows":21,"n_cols":24,"rows_kept":21}
[{"$nulls":6},"Единый график проведения оценочных процедур на 2 полугодие 2025-2026 уч.года"]
["Классы",2,3,4,5,6,7,9,10,11,12,13,14,16,17,18,19,20,21,24,25,26,27,28]
[{"$f":"Апрель!A3","v":2}]
[{"$f":"Апрель!A4","v":3}]
[{"$f":"Апрель!A5","v":4},{"$nulls":7},"ТКР Р",{"$nulls":7},"ТКР М"]
[{"$f":"Апрель!A6","v":5},"ТКР Г",{"$nulls":6},"ТКР М",{"$nulls":6},"ТКР Р"]
[{"$f":"Апрель!A7","v":"6а"},null,null,"ТКР Р"]
[{"$f":"Апрель!A8","v":"6б"},{"$nulls":3},"ТКР Р",{"$nulls":15},"ТКР Г"]
[{"$f":"Апрель!A9","v":7},null,"ТКР Р",{"$nulls":19},"ТКР Г"]
[{"$f":"Апрель!A10","v":8},null,null,"ТКР Г",{"$nulls":9},"ТКР Ал"]
[{"$f":"Апрель!A11","v":9},null,null,"ТКР И ",{"$nulls":7},"ТКР Р "]
[]
[]
["Сокращение названий форм оценочных процедур"]
[{"$nulls":7},"Р","русский язык",null,"Ф","физика",null,"Англ 1, 2","английский язык (1,2 подгруппы)"]
["Всероссийские проверочные работы","ВПР",{"$nulls":5},"Л","литература",null,"Х","химия",null,"ОБЗР","ОБЗР"]
["Основной государственный экзамен","ОГЭ",{"$nulls":5},"М","математика",null,"Инф","информатика",null,"ВиС","вероятность и статистика "]
["Стартовая административная контрольная работа","САКР",{"$nulls":5},"Ал","алгебра",null,"ИЗО","изо",null,"О","окружающий мир"]
["Текущая контрольная работа","ТКР",{"$nulls":5},"Гм","геометрия",null,"РТ","родной (татарский) язык",null,"Общ","обществознание"]
["Административная контрольная работа","АКР",{"$nulls":5},"Г","география",null,"И","история",null,"ГЯ","Гос (тат) яз"]
["Промежуточная аттестация","ПА"]

{"sheet":"Март","index":2,"n_rows":21,"n_cols":24,"rows_kept":21}
[{"$nulls":6},"Единый график проведения оценочных процедур на 2 полугодие 2025-2026 уч.года"]
["Классы",2,3,4,5,6,7,9,10,11,12,13,14,16,17,18,19,20,21,23,24,25,26,27]
[{"$f":"Апрель!A3","v":2},{"$nulls":13},"АКР М",null,"АКР Р"]
[{"$f":"Апрель!A4","v":3},{"$nulls":19},"АКР М","АКР Р"]
[{"$f":"Апрель!A5","v":4},{"$nulls":16},"АКР М",null,null,"АКР Р"]
[{"$f":"Апрель!A6","v":5},{"$nulls":5},"ТКР И",null,null,"ТКР М",{"$nulls":9},"АКР Р",null,null,"АКР М"]
[{"$f":"Апрель!A7","v":"6а"},null,"ТКР Р",{"$nulls":6},"ТКР И",{"$nulls":13},"АКР Г"]
[{"$f":"Апрель!A8","v":"6б"},null,null,"ТКР Р",{"$nulls":4},"АКР И",{"$nulls":10},"АКР М"]
[{"$f":"Апрель!A9","v":7},null,"ТКР Ал",{"$nulls":17},"АКР Р",null,"АКР Ф"]
[{"$f":"Апрель!A10","v":8},{"$nulls":4},"ТКР Р ",{"$nulls":11},"АКР Гм",null,null,"АКР Р","АКР Х"]
[{"$f":"Апрель!A11","v":9},null,"ТКР Ал",{"$nulls":16},"АКР Р",null,null,"АКР Инф"]
[]
[]
["Сокращение названий форм оценочных процедур"]
[{"$nulls":7},"Р","русский язык",null,"Ф","физика",null,"Англ 1, 2","английский язык (1,2 подгруппы)"]
["Всероссийские проверочные работы","ВПР",{"$nulls":5},"Л","литература",null,"Х","химия",null,"ОБЗР","ОБЗР"]
["Основной государственный экзамен","ОГЭ",{"$nulls":5},"М","математика",null,"Инф","информатика",null,"ВиС","вероятность и статистика"]
["Стартовая административная контрольная работа","САКР",{"$nulls":5},"Ал","алгебра",null,"ИЗО","изо",null,"О","окружающий мир"]
["Текущая контрольная работа","ТКР",{"$nulls":5},"Гм","геометрия",null,"РТ","родной (татарский) язык",null,"Общ","обществознание"]
["Административная контрольная работа","АКР",{"$nulls":5},"Г","география",null,"И","история",null,"ГЯ","Гос (тат) яз"]
["Промежуточная аттестация","ПА"]

{"sheet":"Апрель","index":3,"n_rows":21,"n_cols":23,"rows_kept":21}
[{"$nulls":6},"Единый график проведения оценочных процедур на 2 полугодие 2025-2026 уч.года"]
["Классы",6,7,8,9,10,11,13,14,15,16,17,18,20,21,22,23,24,25,27,28,29,30]
[2]
[3]
[4,{"$nulls":9},"ТКР М",{"$nulls":3},"ТКР Р",{"$nulls":7},"ТКР О"]
[5,{"$nulls":7},"ТКР Б",{"$nulls":4},"ТКР Р",null,null,"ТКР М"]
["6а",null,null,"ТКР М",null,"ТКР Г",{"$nulls":5},"ТКР И ",{"$nulls":5},"ТКР Л"]
["6б",null,null,"ТКР М",{"$nulls":4},"ТКР И","ТКР Г",{"$nulls":6},"ТКР Л"]
[7,"ТКР Р","ТКР Ал",null,null,"ТКР Гм",null,null,"ТКР И",{"$nulls":6},"ТКР Б"]
[8,{"$nulls":3},"ТКР Ф",{"$nulls":6},"ТКР Б"]
[9,{"$nulls":3},"ТКР Б",{"$nulls":5},"ТКР Ал",{"$nulls":11},"ТКР Ал"]
[]
[]
["Сокращение названий форм оценочных процедур"]
[{"$nulls":7},"Р","русский язык",null,"Ф","физика",null,null,"Англ 1, 2","английский язык (1,2 подгруппы)"]
["Всероссийские проверочные работы","ВПР",{"$nulls":5},"Л","литература",null,"Х","химия",null,null,"ОБЗР","ОБЗР"]
["Основной государственный экзамен","ОГЭ",{"$nulls":5},"М","математика",null,"Инф","информатика",null,null,"ВиС","вероятность и статистка "]
["Стартовая административная контрольная работа","САКР",{"$nulls":5},"Ал","алгебра",null,"ИЗО","изо",null,null,"О","окружающий мир"]
["Текущая контрольная работа","ТКР",{"$nulls":5},"Гм","геометрия",null,"РТ","родной (татарский) язык",null,null,"Общ","обществознание"]
["Административная контрольная работа","АКР",{"$nulls":5},"Г","география",null,"И","история",null,null,"ГЯ","Гос (тат) яз"]
["Промежуточная аттестация","ПА"]

{"sheet":"Май","index":4,"n_rows":21,"n_cols":20,"rows_kept":21}
[{"$nulls":6},"Единый график проведения оценочных процедур на 2 полугодие 2025-2026 уч.года"]
["Классы",4,5,6,7,8,11,12,13,14,15,16,18,19,20,21,22,23,25,26]
[{"$f":"Апрель!A3","v":2},{"$nulls":8},"АКР М",null,null,"АКР Р"]
[{"$f":"Апрель!A4","v":3},{"$nulls":8},"АКР Р","АКР ТЯ",null,null,"АКР М",null,null,"АКР ГЯ"]
[{"$f":"Апрель!A5","v":4},{"$nulls":7},"АКР ТЯ/ГЯ","АКР М","АКР Р"]
[{"$f":"Апрель!A6","v":5},{"$nulls":9},"АКР Г",null,"АКР ГЯ/ТЯ","АКР Р",null,null,"АКР М"]
[{"$f":"Апрель!A7","v":"6а"},null,"ТКР М",{"$nulls":6},"АКР Р",null,null,"АКР Англ","АКР ГЯ/ТЯ",{"$nulls":4},"АКР М"]
[{"$f":"Апрель!A8","v":"6б"},null,"ТКР М",null,null,"АКР Англ",null,"АКР ТЯ",null,null,"АКР Р",{"$nulls":3},"АКР ГЯ",null,"АКР М"]
[{"$f":"Апрель!A9","v":7},{"$nulls":8},"АКР Англ",null,null,"АКР Р",null,"ТКР ГЯ/ТЯ","АКР Ал","АКР Г"]
[{"$f":"Апрель!A10","v":8},{"$nulls":7},"АКР Г","АКР Общ",null,"ТКР ГЯ/ТЯ","ТКР Англ","АКР Р",null,"АКР Ал","ТКР Х"]
[{"$f":"Апрель!A11","v":9},"ТКР Ф",null,"ТКР Гм","ТКР Общ",{"$nulls":3},"ТКР ГЯ",null,null,"ТКР Х",{"$nulls":3},"ТКР Г"]
[]
[]
["Сокращение названий форм оценочных процедур"]
[{"$nulls":7},"Р","русский язык",null,"Ф","физика",null,"Англ 1, 2","английский язык (1,2 подгруппы)"]
["Всероссийские проверочные работы","ВПР",{"$nulls":5},"Л","литература",null,"Х","химия",null,"ОБЗР","ОБЗР"]
["Основной государственный экзамен","ОГЭ",{"$nulls":5},"М","математика",null,"Инф","информатика",null,"ВиС"," вероятность и статистика"]
["Стартовая административная контрольная работа","САКР",{"$nulls":5},"Ал","алгебра",null,"ИЗО","изо",null,"О","окружающий мир"]
["Текущая контрольная работа","ТКР",{"$nulls":5},"Гм","геометрия",null,"РТ","родной (татарский) язык",null,"Общ","обществознание"]
["Административная контрольная работа","АКР",{"$nulls":5},"Г","география",null,"И","история",null,"ГЯ","Гос (тат) яз"]
["Промежуточная аттестация","ПА"]